Workbook

Sheet Sheet1
A1: INSTRUCTIONS: Use this form when a single information collection document involves multiple reporting and recordkeeping requirements. The totals of the figures in cols. should be entered in item 13 of OMB-83-1: cols. (D) &/or (I) = 13a (respondent is only counted once); cols. F & I = 13b; cols. H & K = 13c; (F)Total/(D)Total = (E)Average; (H)Total/(F)Total = (G)Average; (K)Total/(I)Total = (J)Average NOTE: The columns will calculate automatically. If Col. E's response is something other than annually, i.e., 1/6 years, list as "1/6" & decimal will display. | I1: TITLE OF INFORMATION COLLECTION DOCUMENT Vegetable and Specialty Crop Marketing Orders | N1: OMB NO. 0581-0178
N2: DATE PREPARED December 5, 2013
A3: IDENTIFICATION OF REPORTING OR RECORDKEEPING REQUIREMENT | H3: ANNUAL BURDEN
H4: REPORTS | M4: RECORDS
A5: SECTION OF REGS. (A) | B5: DESCRIPTION (B) | G5: FORM Nos. (If none, so state) (C) | H5: NO. OF RESPONDENTS (D) | I5: NO. OF RESPONSES PER RESPONDENT (E) | J5: TOTAL ANNUAL RESPONSES (Col. DxE) (F) | K5: HOURS PER RESPONSE (G) | L5: TOTAL HOURS (Co. FxG) (H) | M5: NO. OF RECORD KEEPERS (I) | N5: ANNUAL HOURS PER RECORD KEEPER (J) | O5: TOTAL RECORD KEEPING HOURS (Col. IxJ) (K)
A6: 7 CFR | B6: BACKGROUND QUESTIONNAIRE/NOMINEE QUESTIONNAIRE
A7: 932.28 932.29(a) 932.129 | B7: 932 - Olives Producer Nominee Questionnaire | G7: COC-150 | H7: 16 | I7: 0.5000 | J7: =SUM(H7*I7) -> 8.00 | K7: 0.1000 | L7: =SUM(J7*K7) -> 0.80 | O7: =SUM(M7*N7) -> 0.00
A8: 932.28 932.29(b) | B8: 932 - Olives Handler Nominee Questionnaire | G8: COC-149 | H8: 16 | I8: 0.5000 | J8: 8.00 | K8: 0.1000 | L8: 0.80 | O8: 0.00
A9: 948.54 | B9: 948 - Colorado Potatoes | G9: FV-52 | H9: 38 | I9: 0.5000 | J9: =SUM(H9*I9) -> 19.00 | K9: 0.0830 | L9: =SUM(J9*K9) -> 1.58 | O9: =SUM(M9*N9) -> 0.00
A10: 946.26 | B10: 946 - Washington Potatoes | G10: FV-41 | H10: 18 | I10: 0.3333 | J10: 6.00 | K10: 0.0830 | L10: 0.50 | O10: 0.00
B11: SUBTOTAL | J11: =SUM(J6:J10) -> 41.00 | L11: =SUM(L6:L10) -> 3.67 | M11: =SUM(M6:M10) -> 0.00 | O11: =SUM(O6:O10) -> 0.00
B12: TOTAL OF ALL PAGES | J12: =SUM(J11,J20,J28, J36, J43, J50, J58, J66, J73, J82, J89, J96, J103, J110, J117, J124, J131, J137, J144, J148, J153, J159, J165, J175, J184, J191, J199, J205, J212, J218, J225, J234, J242, J250, J258, J266, J271, J278, J285, J292, J300, J308, J313, J319, J325, J331, J337, J345, J351, J357, J363, J370, J376, J383, J390, J397, J404, J410, J417, J424, J432, J439, J446, J451) -> 93,620.79 | L12: =SUM(L11,L20,L28,L36,L43,L50,L58,L66,L73,L82,L89,L96,L103,L110,L117,L124,L131,L137,L144,L148,L153,L159,L165,L175,L184,L191,L199,L205,L212,L218,L225,L234,L242,L250,L258,L266,L271,L278,L285,L292,L300,L308,L313,L319,L325,L331,L337,L345,L351,L357,L363,L370,L376,L383,L390,L397,L404,L410,L417,L424,L432,L439,L446,L451) -> 23,416.87 | M12: =SUM(M175,M184,M191) -> 510.00 | N12: =SUM(N11,N20,N28,N36,N43,N50,N58,N66,N73,N82,N89,N96,N103,N110,N117,N124,N131,N137,N144,N148,N153,N159,N165,N175,N184,N191,N199,N205,N212,N218,N225,N234,N242,N250,N258,N266,N271,N278,N285,N292,N300,N308,N313,N319,N325,N331,N337,N345,N351,N357,N363,N370,N376,N383,N390,N397,N404,N410,N417,N424,N432,N439,N446,N451) -> 0.00 | O12: =SUM(O175,O184,O191) -> 850.49
A13: TOTAL - COLUMNS "F" AND "I" = OMB 831, 13 b; COLUMNS "H" AND "K" = OMB 831, 13c | J13: =J12+M12 -> 94,130.79 | L13: =L12+O12 -> 24,267.36
A14: 959.22 | B14: 959 - South Texas Onions | G14: FV-90 | H14: 17 | I14: 0.5000 | J14: 8.50 | K14: 0.0830 | L14: 0.71 | O14: 0.00
A15: 966.27 | B15: 966 - Florida Tomatoes | G15: FV-283 | H15: 24 | I15: 1.0000 | J15: 24.00 | K15: 0.0830 | L15: 1.99 | O15: 0.00
A16: 987.24 | B16: 987 - California Dates | G16: FV-285 | H16: 18 | I16: 0.5000 | J16: =SUM(H16*I16) -> 9.00 | K16: 0.1670 | L16: =SUM(J16*K16) -> 1.50 | O16: =SUM(M16*N16) -> 0.00
A17: 993.27 | B17: 993 - California Dried Prunes (Committee Nominee) | G17: FV-165 | H17: 42 | I17: 0.5000 | J17: 21.00 | K17: 0.0830 | L17: 1.74 | O17: 0.00
A18: 993.27 | B18: 993 - California Dried Prunes (Public Member) | G18: FV-166 | H18: 2 | I18: 0.5000 | J18: =SUM(H18*I18) -> 1.00 | K18: 0.0830 | L18: =SUM(J18*K18) -> 0.08 | O18: =SUM(M18*N18) -> 0.00
A19: 945.25 945.26 | B19: 945 - Idaho/E. Oregon Potatoes | G19: FV-133 | H19: 16 | I19: 0.5000 | J19: =SUM(H19*I19) -> 8.00 | K19: 0.0830 | L19: =SUM(J19*K19) -> 0.66 | O19: =SUM(M19*N19) -> 0.00
B20: SUBTOTAL | J20: =SUM(J14:J19) -> 71.50 | L20: =SUM(L14:L19) -> 6.69 | M20: =SUM(M14:M19) -> 0.00 | O20: =SUM(O14:O19) -> 0.00
A21: 7 CFR | B21: BACKGROUND AND NOMINEE QUESTIONNAIRES (with Acceptance Statement included)
A22: 955.22 | B22: 955 - Vidalia Onions (Producer & Producer/Handler) | G22: FV-174 | H22: 16 | I22: 1.0000 | J22: 16.00 | K22: 0.1670 | L22: 2.67 | O22: 0.00
A23: 955.22 | B23: 955 - Vidalia Onions (Public Member) | G23: FV-175 | H23: 2 | I23: 1.0000 | J23: =SUM(H23*I23) -> 2.00 | K23: 0.1670 | L23: =SUM(J23*K23) -> 0.33 | O23: =SUM(M23*N23) -> 0.00
A24: 956.24 | B24: 956 - Walla Walla Onions (Public Member) | G24: FV-115 | H24: 2 | I24: 0.3333 | J24: =SUM(H24*I24) -> 0.67 | K24: 0.0830 | L24: =SUM(J24*K24) -> 0.06 | O24: =SUM(M24*N24) -> 0.00
A25: 958.22 | B25: 958 - Idaho/E. Oregon Onions (Producer/Handler) | G25: FV-32 | H25: 20 | I25: 0.5000 | J25: =SUM(H25*I25) -> 10.00 | K25: 0.0830 | L25: =SUM(J25*K25) -> 0.83 | O25: =SUM(M25*N25) -> 0.00
A26: 956.24 | B26: 956 - Walla Walla Onions (Producer/Handler) | G26: FV-112 | H26: 18 | I26: 0.3333 | J26: =SUM(H26*I26) -> 6.00 | K26: 0.0830 | L26: =SUM(J26*K26) -> 0.50 | O26: =SUM(M26*N26) -> 0.00
A27: 958.22 | B27: 958 - Idaho/E. Oregon Onions (Public Member) | G27: FV-33 | H27: 2 | I27: 0.5000 | J27: =SUM(H27*I27) -> 1.00 | K27: 0.0830 | L27: =SUM(J27*K27) -> 0.08 | O27: =SUM(M27*N27) -> 0.00
B28: SUBTOTAL | J28: =SUM(J22:J27) -> 35.67 | L28: =SUM(L22:L27) -> 4.47 | M28: =SUM(M21:M27) -> 0.00 | O28: =SUM(O21:O26) -> 0.00
A29: 981.34 | B29: 981 - California Almonds (Handler Nominee Questionnaire) | G29: FV-177 | H29: 10 | I29: 1.0000 | J29: =SUM(H29*I29) -> 10.00 | K29: 0.0330 | L29: =SUM(J29*K29) -> 0.33 | O29: =SUM(M29*N29) -> 0.00
A30: 981.34 | B30: 981 - California Almonds (Producer Nominee Questionnaire) | G30: FV-176 | H30: 10 | I30: 1.0000 | J30: =SUM(H30*I30) -> 10.00 | K30: 0.0330 | L30: =SUM(J30*K30) -> 0.33 | O30: =SUM(M30*N30) -> 0.00
A31: 982.34 | B31: 982 - Hazelnuts (Producer/Handler) | G31: FV-138 | H31: 18 | I31: 0.5000 | J31: 9.00 | K31: 0.0500 | L31: 0.45 | O31: 0.00
A32: 984.38 | B32: 984 - California Walnuts (Growers and Handlers) | G32: FV-124 | H32: 18 | I32: 0.5000 | J32: =SUM(H32*I32) -> 9.00 | K32: 0.0830 | L32: =SUM(J32*K32) -> 0.75 | O32: =SUM(M32*N32) -> 0.00
A33: 984.38 | B33: 984 - California Walnuts (Public Member) | G33: FV-125 | H33: 2 | I33: 0.5000 | J33: =SUM(H33*I33) -> 1.00 | K33: 0.0830 | L33: =SUM(J33*K33) -> 0.08 | O33: =SUM(M33*N33) -> 0.00
A34: 982.34 | B34: 982 - Hazelnuts (Public Member) | G34: FV-139 | H34: 2 | I34: 0.5000 | J34: =SUM(H34*I34) -> 1.00 | K34: 0.0500 | L34: =SUM(J34*K34) -> 0.05 | O34: =SUM(M34*N34) -> 0.00
A35: 985.23 | B35: 985 - Spearmint Oil (Producer Member/Alternate Member) | G35: FV-57 | H35: 14 | I35: 0.5000 | J35: =SUM(H35*I35) -> 7.00 | K35: 0.0333 | L35: =SUM(J35*K35) -> 0.23 | O35: =SUM(M35*N35) -> 0.00
B36: SUBTOTAL | J36: =SUM(J29:J35) -> 47.00 | L36: =SUM(L29:L35) -> 2.22 | M36: =SUM(M29:M35) -> 0.00 | O36: =SUM(O24:O34) -> 0.00
A37: 985.23 | B37: 985 - Spearmint Oil (Public Member/Alternate Member) | G37: FV-58 | H37: 2 | I37: 0.5000 | J37: =SUM(H37*I37) -> 1.00 | K37: 0.0333 | L37: =SUM(J37*K37) -> 0.03 | O37: =SUM(M37*N37) -> 0.00
A38: 989.30 989.32 | B38: 989 - California Raisins (Handlers) | G38: FV-219 | H38: 26 | I38: 0.5000 | J38: =SUM(H38*I38) -> 13.00 | K38: 0.1000 | L38: =SUM(J38*K38) -> 1.30 | O38: =SUM(M38*N38) -> 0.00
A39: 989.30 989.32 | B39: 989 - California Raisins (Public Member) | G39: FV-220 | H39: 2 | I39: 0.5000 | J39: =SUM(H39*I39) -> 1.00 | K39: 0.1000 | L39: =SUM(J39*K39) -> 0.10 | O39: =SUM(M39*N39) -> 0.00
A40: 989.30 989.32 | B40: 989 - California Raisins (Growers) | G40: FV-222 | H40: 70 | I40: 0.5000 | J40: =SUM(H40*I40) -> 35.00 | K40: 0.1000 | L40: =SUM(J40*K40) -> 3.50 | O40: =SUM(M40*N40) -> 0.00
B41: COMMITTEE BALLOTS/NOMINATIONS
A42: 932.25 932.28 | B42: 932 - Olives - Producer Nomination Ballot District 1 | G42: FV-269 | H42: 425 | I42: 0.1667 | J42: =SUM(H42*I42) -> 70.85 | K42: 0.2500 | L42: =SUM(J42*K42) -> 17.71 | O42: =SUM(M42*N42) -> 0.00
B43: SUBTOTAL | J43: =SUM(J37:J42) -> 120.85 | L43: =SUM(L37:L42) -> 22.65 | M43: =SUM(M37:M42) -> 0.00 | O43: =SUM(O32:O38) -> 0.00
A44: 955.22 | B44: 955 - Vidalia Onions Voter Registration Sheet | G44: No form number | H44: 50 | I44: 1.0000 | J44: =SUM(H44*I44) -> 50.00 | K44: 0.0830 | L44: =SUM(J44*K44) -> 4.15 | O44: =SUM(M44*N44) -> 0.00
A45: 955.22 | B45: 955 - Vidalia Onions Election Ballot | G45: No form number | H45: 50 | I45: 1.0000 | J45: 50.00 | K45: 0.0830 | L45: 4.15 | O45: =SUM(M45*N45) -> 0.00
A46: 955.22 | B46: 955 - Vidalia Onions Nomination Ballot | G46: No form number | H46: 20 | I46: 1.0000 | J46: 20.00 | K46: 0.0166 | L46: 0.33 | O46: 0.00
A47: 932.25 932.28 | B47: 932 - Olives - Producer Nomination Ballot District 2 | G47: FV-273 | H47: 425 | I47: 0.1667 | J47: 70.85 | K47: 0.2500 | L47: 17.71
A48: 982.32 | B48: 982 - Hazelnuts (Growers) | G48: F/H Form F(2) | H48: 600 | I48: 0.5000 | J48: 300.00 | K48: 0.0500 | L48: 15.00 | O48: =SUM(M48*N48) -> 0.00
A49: 982.32 | B49: 982 - Hazelnuts (Handler, Position 4) | G49: F/H Form F(3) | H49: 17 | I49: 0.5000 | J49: 8.50 | K49: 0.0500 | L49: 0.43 | O49: =SUM(M49*N49) -> 0.00
B50: SUBTOTAL | J50: =SUM(J44:J49) -> 499.35 | L50: =SUM(L44:L49) -> 41.77 | M50: =SUM(M44:M49) -> 0.00 | O50: =SUM(O39:O47) -> 0.00
A51: 982.32 | B51: 982 - Hazelnuts (Handler, Position 1-3) | G51: F/H Form F(4) | H51: 3 | I51: 0.5000 | J51: =SUM(H51*I51) -> 1.50 | K51: 0.0500 | L51: =SUM(J51*K51) -> 0.08 | O51: =SUM(M51*N51) -> 0.00
A52: 984.37 984.437 | B52: 984 - Walnuts (Producer Ballot, Districts One and Two) | G52: No Form number | H52: 3,850 | I52: 0.5000 | J52: 1,925.00 | K52: 0.0830 | L52: 159.78 | O52: 0.00
A53: 984.37 | B53: 984 - Walnuts (Handler Ballot) | G53: No Form number | H53: 63 | I53: 0.5000 | J53: 31.50 | K53: 0.0830 | L53: 2.61 | O53: 0.00
A54: 987.24 | B54: 987 - Dates (Voter Eligibility) | G54: No Form number | H54: 105 | I54: 0.5000 | J54: 52.50 | K54: 0.0830 | L54: 4.36 | O54: 0.00
A55: 987.24 | B55: 987 - Dates (Producer Ballot) | G55: No Form number | H55: 105 | I55: 0.5000 | J55: 52.50 | K55: 0.0830 | L55: 4.36 | O55: 0.00
A56: 987.24 | B56: 987 - Dates (Producer-Handler Ballot) | G56: No Form number | H56: 11 | I56: 0.5000 | J56: 5.50 | K56: 0.0830 | L56: 0.46 | O56: 0.00
A57: 987.24 | B57: 987 - Dates (Committee Nomination Form) | G57: No Form number | H57: 11 | I57: 0.5000 | J57: 5.50 | K57: 0.0830 | L57: 0.46 | O57: 0.00
B58: SUBTOTAL | J58: =SUM(J51:J57) -> 2,074.00 | L58: =SUM(L51:L57) -> 172.09 | M58: =SUM(M52:M57) -> 0.00 | O58: 0.00
A59: 989.29 | B59: 989 - Raisins (Voluntary Independent Producer's Statement) | G59: No Form number | H59: 70 | I59: 0.5000 | J59: =SUM(H59*I59) -> 35.00 | K59: 0.0830 | L59: =SUM(J59*K59) -> 2.91 | O59: =SUM(M59*N59) -> 0.00
A60: 989.29 | B60: 989 - Raisins (Independent Producer's Ballot) | G60: FV-223 | H60: 1,200 | I60: 0.5000 | J60: 600.00 | K60: 0.2000 | L60: 120.00 | O60: 0.00
A61: 993.28(a) 993.128 | B61: 993 - California Dried Prunes | G61: No Form number | H61: 500 | I61: 1.0000 | J61: 500.00 | K61: 0.2000 | L61: 100.00 | O61: 0.00
B62: LETTER OF ACCEPTANCE
A63: 946.26 | B63: 946 - Washington Potatoes (Signature only, no burden) | G63: No Form number | H63: 18 | I63: 0.3333 | J63: =SUM(H63*I63) -> 6.00 | L63: =SUM(J63*K63) -> 0.00 | O63: =SUM(M63*N63) -> 0.00
A64: 948.59 | B64: 948 - Colorado Potatoes (Signature only, no burden) | G64: No form number | H64: 38 | I64: 0.5000 | J64: 19.00 | L64: =SUM(J64*K64) -> 0.00
A65: 955.24 | B65: 955 - Vidalia Onions (Signature only, no burden) | G65: No Form number | H65: 17 | I65: 0.5000 | J65: =SUM(H65*I65) -> 8.50 | L65: =SUM(J65*K65) -> 0.00 | O65: =SUM(M65*N65) -> 0.00
B66: SUBTOTAL | J66: =SUM(J59:J65) -> 1,168.50 | L66: =SUM(L59:L65) -> 222.91 | M66: =SUM(M59:M65) -> 0.00 | O66: =SUM(O59:O63) -> 0.00
A67: 959.29 | B67: 959 - South Texas Onions (Signature only, no burden) | G67: No Form number | H67: 17 | I67: 0.5000 | J67: =SUM(H67*I67) -> 8.50 | L67: =SUM(J67*K67) -> 0.00 | O67: =SUM(M67*N67) -> 0.00
A68: 966.29 | B68: 966 - Florida Tomatoes (Signature only, no burden) | G68: No Form number | H68: 24 | I68: 1.0000 | J68: =SUM(H68*I68) -> 24.00 | L68: =SUM(J68*K68) -> 0.00 | O68: =SUM(M68*N68) -> 0.00
A69: 987.25 | B69: 987 - California Dates (Signature only, no burden) | G69: No Form number | H69: 18 | I69: 0.5000 | J69: 9.00 | L69: 0.00 | O69: 0.00
A70: 993.31 | B70: 993 - California Dried Prunes (Signature only, no burden) | G70: No Form number | H70: 44 | I70: 0.5000 | J70: =SUM(H70*I70) -> 22.00 | L70: =SUM(J70*K70) -> 0.00 | O70: =SUM(M70*N70) -> 0.00
B71: MARKETING AGREEMENT
A72: 900.14 | B72: Marketing Agreement (Used by all commodities in this package, and accounts for burden of all these commodities) | G72: FV-325 | H72: 677 | I72: 0.1667 | J72: =SUM(H72*I72) -> 112.86 | K72: 0.0830 | L72: =SUM(J72*K72) -> 9.37 | O72: 0.00
B73: SUBTOTAL | J73: =SUM(J67:J72) -> 176.36 | L73: =SUM(L67:L72) -> 9.37 | M73: =SUM(M67:M72) -> 0.00 | O73: =SUM(O64:O70) -> 0.00
B74: CERTIFICATE OF RESOLUTION
A75: 900.14 | B75: 932 - Olives | G75: FV-235-A | H75: 2 | I75: 0.1667 | J75: =SUM(H75*I75) -> 0.33 | K75: 0.0830 | L75: =SUM(J75*K75) -> 0.03 | O75: =SUM(M75*N75) -> 0.00
A76: 900.14 | B76: 945 - Idaho/E. Oregon Potatoes (Cooperative) | G76: FV-131B | H76: 2 | I76: 0.1667 | J76: 0.33 | K76: 0.0830 | L76: 0.03 | O76: 0.00
A77: 900.14 | B77: 945 - Idaho/E. Oregon Potatoes (Corporation) | G77: FV-132A | H77: 250 | I77: 0.1667 | J77: 41.68 | K77: 0.0830 | L77: 3.46 | O77: 0.00
A78: 900.14 | B78: 946 - Washington Potatoes | G78: FV-40A | H78: 45 | I78: 0.1667 | J78: 7.50 | K78: 0.0830 | L78: 0.62 | O78: 0.00
A79: 900.14 | B79: 948 - Colorado Potatoes | G79: FV-51A | H79: 81 | I79: 0.1667 | J79: =SUM(H79*I79) -> 13.50 | K79: 0.0830 | L79: =SUM(J79*K79) -> 1.12 | O79: =SUM(M79*N79) -> 0.00
A80: 900.14 | B80: 956 - Walla Walla Onions | G80: FV-113A | H80: 15 | I80: 0.1667 | J80: =SUM(H80*I80) -> 2.50 | K80: 0.0830 | L80: =SUM(J80*K80) -> 0.21 | O80: =SUM(M80*N80) -> 0.00
A81: 900.14 | B81: 958 - Idaho/E. Oregon Onions | G81: FV-31A | H81: 32 | I81: 0.1667 | J81: =SUM(H81*I81) -> 5.33 | K81: 0.0830 | L81: =SUM(J81*K81) -> 0.44 | O81: =SUM(M81*N81) -> 0.00
B82: SUBTOTAL | J82: =SUM(J74:J81) -> 71.18 | L82: =SUM(L74:L81) -> 5.91 | M82: =SUM(M74:M81) -> 0.00 | O82: =SUM(O71:O79) -> 0.00
A83: 900.14 | B83: 959 - South Texas Onions | G83: FV-89A | H83: 15 | I83: 0.1667 | J83: =SUM(H83*I83) -> 2.50 | K83: 0.0830 | L83: =SUM(J83*K83) -> 0.21 | O83: =SUM(M83*N83) -> 0.00
A84: 900.14 | B84: 982 - Hazelnuts | G84: FV-137A | H84: 18 | I84: 0.1000 | J84: 1.80 | K84: 0.0830 | L84: 0.15 | O84: 0.00
A85: 900.14 | B85: 984 - California Walnuts | G85: FV-127-A | H85: 48 | I85: 0.1667 | J85: 8.00 | K85: 0.0830 | L85: 0.66 | O85: 0.00
A86: 900.14 | B86: 985 - Spearmint Oil | G86: FV-63A | H86: 10 | I86: 0.1667 | J86: 1.67 | K86: 0.0830 | L86: 0.14 | O86: 0.00
A87: 900.14 | B87: 989 - California Raisins | G87: FV-225-A | H87: 2 | I87: 0.1667 | J87: =SUM(H87*I87) -> 0.33 | K87: 0.0830 | L87: =SUM(J87*K87) -> 0.03 | O87: =SUM(M87*N87) -> 0.00
A88: 900.14 | B88: 993 - California Dried Prunes | G88: FV-169A | H88: 1 | I88: 0.1000 | J88: =SUM(H88*I88) -> 0.10 | K88: 0.0830 | L88: =SUM(J88*K88) -> 0.01 | O88: =SUM(M88*N88) -> 0.00
B89: SUBTOTAL | J89: =SUM(J83:J88) -> 14.40 | L89: =SUM(L83:L88) -> 1.20 | M89: =SUM(M83:M88) -> 0.00 | O89: =SUM(O80:O87) -> 0.00
A90: 7 CFR | B90: PRODUCER REFERENDUM
A91: 900.403 932.68 | B91: 932 - Olives Producer's Referendum Ballot (Dist. 1) | G91: FV-236A | H91: 425 | I91: 0.1667 | J91: =SUM(H91*I91) -> 70.85 | K91: 0.2500 | L91: =SUM(J91*K91) -> 17.71 | O91: =SUM(M91*N91) -> 0.00
A92: 900.403 932.68 | B92: 932 - Olives Producer's Referendum Ballot (Dist. 2) | G92: FV-236B | H92: 425 | I92: 0.1667 | J92: 70.85 | K92: 0.2500 | L92: 17.71
A93: 900.403 945.83 | B93: 945 - Idaho/E. Oregon Potatoes Producer Referendum Ballot | G93: FV-131 | H93: 500 | I93: 0.1667 | J93: =SUM(H93*I93) -> 83.35 | K93: 0.3300 | L93: =SUM(J93*K93) -> 27.51 | O93: =SUM(M93*N93) -> 0.00
A94: 900.403 945.83 | B94: 945 - Idaho/E. Oregon Potatoes Cooperative Association Referendum Ballot | G94: FV-131A | H94: 2 | I94: 0.1667 | J94: =SUM(H94*I94) -> 0.33 | K94: 0.3300 | L94: =SUM(J94*K94) -> 0.11 | O94: =SUM(M94*N94) -> 0.00
A95: 900.403 945.83 | B95: 945 - Idaho/E. Oregon Potatoes Cooperative's Certificate of Resolution (Referendum) | G95: FV-131B | H95: 2 | I95: 0.1667 | J95: =SUM(H95*I95) -> 0.33 | K95: 0.0830 | L95: =SUM(J95*K95) -> 0.03 | O95: =SUM(M95*N95) -> 0.00
B96: SUBTOTAL | J96: =SUM(J90:J95) -> 225.71 | L96: =SUM(L90:L95) -> 63.07 | M96: =SUM(M90:M95) -> 0.00 | O96: =SUM(O88:O93) -> 0.00
A97: 900.403 946.63 | B97: 946 - Washington Potatoes Producer Referendum Ballot | G97: FV-39 | H97: 267 | I97: 0.1667 | J97: 44.51 | K97: 0.3300 | L97: 14.69 | O97: 0.00
A98: 900.403 946.63 | B98: 946 - Washington Potatoes Cooperative Association Referendum Ballot | G98: FV-39A | H98: 2 | I98: 0.1667 | J98: 0.33 | K98: 0.3300 | L98: 0.11 | O98: 0.00
A99: 900.403 946.63 | B99: 946 - Washington Potatoes Cooperative's Certificate of Resolution | G99: FV-39B | H99: 2 | I99: 0.1667 | J99: =SUM(H99*I99) -> 0.33 | K99: 0.0830 | L99: =SUM(J99*K99) -> 0.03 | O99: =SUM(M99*N99) -> 0.00
A100: 900.403 948.84 | B100: 948 - Colorado Potatoes Producer Referendum Ballot | G100: FV-50 | H100: 185 | I100: 0.1667 | J100: =SUM(H100*I100) -> 30.84 | K100: 0.3300 | L100: =SUM(J100*K100) -> 10.18 | O100: =SUM(M100*N100) -> 0.00
A101: 900.403 948.84 | B101: 948 - Colorado Potatoes Cooperative Association Referendum Ballot | G101: FV-50A | H101: 2 | I101: 0.1667 | J101: =SUM(H101*I101) -> 0.33 | K101: 0.3300 | L101: =SUM(J101*K101) -> 0.11 | O101: =SUM(M101*N101) -> 0.00
A102: 900.403 948.84 | B102: 948 - Colorado Potatoes Cooperative's Certificate of Resolution | G102: FV-50B | H102: 2 | I102: 0.1667 | J102: =SUM(H102*I102) -> 0.33 | K102: 0.0830 | L102: =SUM(J102*K102) -> 0.03 | O102: =SUM(M102*N102) -> 0.00
B103: SUBTOTAL | J103: =SUM(J97:J102) -> 76.68 | L103: =SUM(L97:L102) -> 25.14 | M103: =SUM(M97:M102) -> 0.00 | O103: =SUM(O94:O99) -> 0.00
A104: 900.403 955.71(d) | B104: 955 - Vidalia Onions Producer Referendum Ballot | G104: FV-156 | H104: 100 | I104: 0.1667 | J104: 16.67 | K104: 0.3300 | L104: 5.50 | O104: 0.00
A105: 900.403 956.85 | B105: 956 - Walla Walla Onions Producer Referendum Ballot | G105: FV-114 | H105: 35 | I105: 0.1667 | J105: 5.83 | K105: 0.3300 | L105: 1.93 | O105: 0.00
A106: 900.403 956.85 | B106: 956 - Walla Walla Onions Cooperative Association Referendum Ballot | G106: FV-114A | H106: 1 | I106: 0.1667 | J106: =SUM(H106*I106) -> 0.17 | K106: 0.3300 | L106: =SUM(J106*K106) -> 0.06 | O106: =SUM(M106*N106) -> 0.00
A107: 900.403 956.85 | B107: 956 - Walla Walla Onions Cooperative's Certificate of Resolution | G107: FV-114B | H107: 1 | I107: 0.1667 | J107: 0.17 | K107: 0.0830 | L107: 0.01 | O107: 0.00
A108: 900.403 958.71 | B108: 958 - Idaho/E. Oregon Onions Producer Referendum Ballot | G108: FV-30 | H108: 250 | I108: 0.1667 | J108: 41.68 | K108: 0.3300 | L108: 13.75 | O108: 0.00
A109: 900.403 958.71 | B109: 958 - Idaho/E. Oregon Onions Cooperative Association Referendum Ballot | G109: FV-30A | H109: 1 | I109: 0.1667 | J109: 0.17 | K109: 0.3300 | L109: 0.06 | O109: 0.00
B110: SUBTOTAL | J110: =SUM(J104:J109) -> 64.68 | L110: =SUM(L104:L109) -> 21.30 | M110: =SUM(M104:M109) -> 0.00 | O110: =SUM(O105:O109) -> 0.00
A111: 900.403 958.71 | B111: 958 - Idaho/E. Oregon Onions Cooperative's Certificate of Resolution | G111: FV-30B | H111: 1 | I111: 0.1667 | J111: 0.17 | K111: 0.0830 | L111: 0.01 | O111: 0.00
A112: 900.403 959.84 | B112: 959 - South Texas Onions | G112: FV-94 | H112: 94 | I112: 0.1667 | J112: =SUM(H112*I112) -> 15.67 | K112: 0.3300 | L112: =SUM(J112*K112) -> 5.17 | O112: =SUM(M112*N112) -> 0.00
A113: 900.403 959.84 | B113: 959 - South Texas Onions Amendment Referendum | G113: FV-94A | H113: 94 | I113: 0.1667 | J113: =SUM(H113*I113) -> 15.67 | K113: 0.3300 | L113: =SUM(J113*K113) -> 5.17 | O113: 0.00
A114: 900.403 966.92 | B114: 966 - Florida Tomatoes Official Producer Ballot | G114: FV-68 | H114: 130 | I114: 0.1000 | J114: 13.00 | K114: 0.3300 | L114: 4.29 | O114: 0.00
A115: 900.14 981.92 | B115: 981 - California Almonds Producer Referendum Ballot | G115: FV-178 | H115: 6,200 | I115: 0.1667 | J115: =SUM(H115*I115) -> 1,033.54 | K115: 0.1670 | L115: =SUM(J115*K115) -> 172.60 | O115: =SUM(M115*N115) -> 0.00
A116: 900.14 981.92 | B116: 981 - California Almonds Cooperative Referendum Ballot | G116: FV-179 | H116: 1 | I116: 0.1667 | J116: 0.17 | K116: 0.1670 | L116: 0.03 | O116: 0.00
B117: SUBTOTAL | J117: =SUM(J111:J116) -> 1,078.21 | L117: =SUM(L111:L116) -> 187.27 | M117: 0.00 | O117: 0.00
A118: 900.403 982.86 | B118: 982 - Hazelnuts Producer Referendum Ballot | G118: FV-136 | H118: 600 | I118: 0.1667 | J118: 100.02 | K118: 0.3300 | L118: 33.01 | O118: 0.00
A119: 900.403 982.86 | B119: 982 - Hazelnuts Cooperative Association Referendum Ballot | G119: FV-136A | H119: 2 | I119: 0.1667 | J119: 0.33 | K119: 0.3300 | L119: 0.11 | O119: 0.00
A120: 900.403 982.86 | B120: 982 - Hazelnuts Cooperative's Certificate of Resolution | G120: FV-136B | H120: 2 | I120: 0.1667 | J120: 0.33 | K120: 0.0830 | L120: 0.03 | O120: 0.00
A121: 900.403 984.90 | B121: 984 - California Walnuts (Continuation and Amendment) | G121: FV-126 and FV-126-A | H121: 4,800 | I121: 0.1667 | J121: 800.16 | K121: 0.3300 | L121: =SUM(J121*K121) -> 264.05 | O121: =SUM(M121*N121) -> 0.00
A122: 900.14 985.72 | B122: 985 - Spearmint Oil Producer's Referendum Ballot (Amendment and Termination) | G122: FV-60 | H122: 125 | I122: 0.1667 | J122: 20.84 | K122: 0.3300 | L122: =SUM(J122*K122) -> 6.88 | O122: =SUM(M122*N122) -> 0.00
A123: 900.14 985.72 | B123: 985 - Spearmint Oil Cooperative Association Referendum Ballot | G123: FV-60A | H123: 1 | I123: 0.1667 | J123: 0.17 | K123: 0.3300 | L123: 0.06 | O123: 0.00
B124: SUBTOTAL | J124: =SUM(J118:J123) -> 921.85 | L124: =SUM(L118:L123) -> 304.13 | M124: =SUM(M118:M123) -> 0.00 | O124: =SUM(O118:O122) -> 0.00
A125: 900.14 985.72 | B125: 985 - Spearmint Oil Cooperative's Certificate of Resolution | G125: FV-60-B | H125: 1 | I125: 0.1667 | J125: =SUM(H125*I125) -> 0.17 | K125: 0.0830 | L125: =SUM(J125*K125) -> 0.01 | O125: =SUM(M125*N125) -> 0.00
A126: 900.403 987.82 | B126: 987 - California Dates | G126: FV-72 | H126: 105 | I126: 0.1667 | J126: 17.50 | K126: 0.3300 | L126: 5.78 | O126: 0.00
A127: 900.403 989.91 | B127: 989 - California Raisins Producer's Referendum Ballot | G127: FV-224 | H127: 3,000 | I127: 0.1667 | J127: 500.10 | K127: 0.3300 | L127: 165.03 | O127: 0.00
A128: 900.403 989.91 | B128: 989 - California Raisins Cooperative Association Ballot | G128: FV-225-B | H128: 4 | I128: 0.1667 | J128: 0.67 | K128: 0.3300 | L128: 0.22 | O128: 0.00
A129: 900.403 993.90 | B129: 993 - California Dried Prunes | G129: FV-167 | H129: 1,100 | I129: 0.1000 | J129: 110.00 | K129: 0.3300 | L129: 36.30 | O129: 0.00
A130: 900.403 993.90 | B130: 993 - California Dried Prunes Cooperative's Official Ballot | G130: FV-168 | H130: 1 | I130: 0.1000 | J130: 0.10 | K130: 0.0830 | L130: =SUM(J130*K130) -> 0.01 | O130: =SUM(M130*N130) -> 0.00
B131: SUBTOTAL | J131: =SUM(J125:J130) -> 628.54 | L131: =SUM(L125:L130) -> 207.35 | M131: =SUM(M125:M130) -> 0.00 | O131: =SUM(O123:O129) -> 0.00
B132: CERTIFICATE OF PRIVILEGE
A133: 945.56 945.80 945.122 934.341 | B133: 945 - Idaho/E. Oregon Potatoes Application for Certificate of Privilege for Special Purpose Shipment Report | G133: No Form number | H133: 72 | I133: 1.0000 | J133: =SUM(H133*I133) -> 72.00 | K133: 0.1670 | L133: =SUM(J133*K133) -> 12.02 | O133: =SUM(M133*N133) -> 0.00
A134: 948.24 948.120 948.121 948.122 | B134: 948 - Colorado Potatoes (Area II) | G134: No Form number | H134: 25 | I134: 1.0000 | J134: =SUM(H134*I134) -> 25.00 | K134: 0.1500 | L134: =SUM(J134*K134) -> 3.75 | O134: =SUM(M134*N134) -> 0.00
A135: 948.24 948.120 948.121 948.122 | B135: 948 - Colorado Potatoes (Area III) | G135: No Form number | H135: 9 | I135: 1.0000 | J135: 9.00 | K135: 0.1500 | L135: 1.35 | O135: 0.00
A136: 956.63 956.66 956.80 956.163 | B136: 956 - Walla Walla Sweet Onions Shippers/Receivers Application for Certificate of Privilege | G136: Form No. 3 | H136: 1 | I136: 1.0000 | J136: 1.00 | K136: 0.0330 | L136: 0.03 | O136: 0.00
B137: SUBTOTAL | J137: =SUM(J132:J136) -> 107.00 | L137: =SUM(L132:L136) -> 17.16 | M137: =SUM(M132:M136) -> 0.00 | O137: =SUM(O134:O139) -> 0.00
A138: 958.56 958.328 | B138: 958 - Idaho/E. Oregon Onions Application to Make Special Purpose Shipments - Certificate of Privilege | G138: FV-34 | H138: 25 | I138: 3.0000 | J138: =SUM(H138*I138) -> 75.00 | K138: 0.1333 | L138: =SUM(J138*K138) -> 10.00 | O138: =SUM(M138*N138) -> 0.00
A139: 959.122 | B139: 959 - South Texas Onions | G139: No Form number | H139: 26 | I139: 1.0000 | J139: =SUM(H139*I139) -> 26.00 | K139: 0.0830 | L139: =SUM(J139*K139) -> 2.16 | O139: =SUM(M139*N139) -> 0.00
A140: 966.120 966.323 | B140: 966 - Florida Tomatoes Application for Certificate of Privilege | G140: FTC-108 | H140: 10 | I140: 1.0000 | J140: 10.00 | K140: 0.0830 | L140: 0.83 | O140: 0.00
A141: 7 CFR | B141: SPECIAL PURPOSE SHIPMENT
A142: 932.55 932.155 | B142: 932 - California Olives | G142: COC-155 | H142: 2 | I142: 1.0000 | J142: =SUM(H142*I142) -> 2.00 | K142: 0.3300 | L142: =SUM(J142*K142) -> 0.66 | O142: =SUM(M142*N142) -> 0.00
A143: 946.55 946.122 946.336 | B143: 946 - Washington Potatoes | G143: No Form number | H143: 18 | I143: 56.0000 | J143: =SUM(H143*I143) -> 1,008.00 | K143: 0.1500 | L143: =SUM(J143*K143) -> 151.20 | O143: =SUM(M143*N143) -> 0.00
B144: SUBTOTAL | J144: =SUM(J138:J143) -> 1,121.00 | L144: =SUM(L138:L143) -> 164.85 | M144: =SUM(M138:M143) -> 0.00 | O144: =SUM(O140:O143) -> 0.00
A145: 948.23 948.24 948.120 948.121 948.124 948.386 948.387 | B145: 948 - Colorado Potatoes (Area III) (Chipping Potatoes) | G145: No Form number | H145: 4 | I145: 338.0000 | J145: 1,352.00 | K145: 0.1500 | L145: 202.80 | O145: 0.00
A146: 948.23 948.24 948.120 948.121 948.124 948.386 948.387 | B146: 948 - Colorado Potatoes (Area II) | G146: No Form number | H146: 20 | I146: 112.0000 | J146: =SUM(H146*I146) -> 2,240.00 | K146: 0.1500 | L146: =SUM(J146*K146) -> 336.00 | O146: =SUM(M146*N146) -> 0.00
A147: 948.23 948.24 948.120 948.121 948.124 948.386 948.387 | B147: 948 - Colorado Potatoes (Area III) (Other than for Chipping) | G147: No Form number | H147: 9 | I147: 34.0000 | J147: =SUM(H147*I147) -> 306.00 | K147: 0.1500 | L147: =SUM(J147*K147) -> 45.90 | O147: =SUM(M147*N147) -> 0.00
B148: SUBTOTAL | J148: =SUM(J145:J147) -> 3,898.00 | L148: =SUM(L145:L147) -> 584.70 | M148: 0.00 | O148: 0.00
A149: 948.386 | B149: 948 - Colorado Potatoes (Area II) (Consideration of Approval as a Canner, Freezer, etc.) | G149: No Form number | H149: 150 | I149: 1.0000 | J149: 150.00 | K149: 0.1500 | L149: 22.50 | O149: 0.00
A150: 948.386 948.387 | B150: 948 - Colorado Potatoes (Area III) (Consideration of Approval as a Canner, Freezer, etc.) | G150: No Form number | H150: 25 | I150: 1.0000 | J150: 25.00 | K150: 0.1500 | L150: 3.75 | O150: 0.00
A151: 948.23 948.24 948.386 | B151: 948 - Colorado Potatoes (Area II) Experimental Exemption for Potatoes | G151: No Form number | H151: 10 | I151: 50.0000 | J151: =SUM(H151*I151) -> 500.00 | K151: 0.1500 | L151: =SUM(J151*K151) -> 75.00 | O151: =SUM(M151*N151) -> 0.00
A152: 948.23 948.24 948.386 | B152: 948 - Colorado Potatoes (Area II) Exemption for Fingerling Potatoes | G152: No Form number | H152: 10 | I152: 50.0000 | J152: 500.00 | K152: 0.0830 | L152: 41.50
B153: SUBTOTAL | J153: =SUM(J149:J152) -> 1,175.00 | L153: =SUM(L149:L152) -> 142.75 | M153: =SUM(M149:M152) -> 0.00 | O153: =SUM(O149:O151) -> 0.00
A154: 956.63 956.66 956.80 956.163 | B154: 956 - Walla Walla Sweet Onions Special Purpose Shipment Report | G154: Form No. 4 | H154: 1 | I154: 1.0000 | J154: 1.00 | K154: 0.3300 | L154: 0.33 | O154: 0.00
A155: 958.56 958.328 | B155: 958 - Idaho/E. Oregon Onions Special Purpose Shipment Receiver Certification | G155: FV-36 | H155: 23 | I155: 1.0000 | J155: =SUM(H155*I155) -> 23.00 | K155: 0.0333 | L155: =SUM(J155*K155) -> 0.77 | O155: =SUM(M155*N155) -> 0.00
A156: 959.124 | B156: 959 - South Texas Onions Report of Special Purpose Onion Shipment | G156: No Form number | H156: 13 | I156: 25.0000 | J156: =SUM(H156*I156) -> 325.00 | K156: 0.0830 | L156: =SUM(J156*K156) -> 26.98 | O156: =SUM(M156*N156) -> 0.00
A157: 966.122 966.323 | B157: 966 - Florida Tomatoes Report of Special Purpose Certificate under Certificate of Privilege | G157: FTC-110 | H157: 15 | I157: 7.0000 | J157: 105.00 | K157: 0.0830 | L157: 8.72 | O157: 0.00
A158: 966.124 | B158: 966 - Florida Tomatoes Application for Registration as an Approved Receiver of Special Purpose Shipments | G158: FTC-111 | H158: 20 | I158: 1.0000 | J158: 20.00 | K158: 0.0830 | L158: 1.66 | O158: 0.00
B159: SUBTOTAL | J159: =SUM(J154:J158) -> 474.00 | L159: =SUM(L154:L158) -> 38.45 | M159: =SUM(M154:M158) -> 0.00 | O159: =SUM(O152:O156) -> 0.00
B160: APPLICATION FOR REGISTERED HANDLER
A161: 956.180 | B161: 956 - Walla Walla Sweet Onions Walla Walla Sweet Onion Handler Registration Form | G161: Form No. 2 | H161: 15 | I161: 1.0000 | J161: =SUM(H161*I161) -> 15.00 | K161: 0.2500 | L161: =SUM(J161*K161) -> 3.75 | O161: =SUM(M161*N161) -> 0.00
A162: 959.103 | B162: 959 - South Texas Onions | G162: No Form number | H162: 38 | I162: 1.0000 | J162: 38.00 | K162: 0.0830 | L162: 3.15 | O162: 0.00
A163: 966.113 | B163: 966 - Florida Tomatoes Application for Registration as Tomato Handler | G163: FTC-102-75 | H163: 75 | I163: 1.0000 | J163: =SUM(H163*I163) -> 75.00 | K163: 0.0830 | L163: =SUM(J163*K163) -> 6.23 | O163: =SUM(M163*N163) -> 0.00
A164: 966.56(a) 966.323(d)(3) | B164: 966 - Florida Tomatoes Application for Certified Tomato Repacker | G164: FTC-103 | H164: 26 | I164: 1.0000 | J164: =SUM(H164*I164) -> 26.00 | K164: 0.0830 | L164: =SUM(J164*K164) -> 2.16 | O164: =SUM(M164*N164) -> 0.00
B165: SUBTOTAL | J165: =SUM(J160:J164) -> 154.00 | L165: =SUM(L160:L164) -> 15.29 | M165: =SUM(M160:M164) -> 0.00 | O165: =SUM(O157:O162) -> 0.00
B166: RECORD KEEPING
A167: 932.61 | B167: 932 - Olives | G167: None | J167: =SUM(H167*I167) -> 0.00 | L167: =SUM(J167*K167) -> 0.00 | M167: 2 | N167: 52.830 | O167: =SUM(M167*N167) -> 105.66
A168: 945.80 | B168: 945 - Idaho/E. Oregon Potatoes | G168: None | J168: 0.00 | L168: 0.00 | M168: 48 | N168: 0.420 | O168: 20.16
A169: 946.70 | B169: 946 - Washington Potatoes | G169: None | J169: 0.00 | L169: 0.00 | M169: 45 | N169: 0.660 | O169: 29.70
A170: 948.80 | B170: 948 - Colorado Potatoes (Area II) | G170: None | J170: 0.00 | L170: 0.00 | M170: 20 | N170: 1.080 | O170: 21.60
A171: 948.80 | B171: 948 - Colorado Potatoes (Area III) | G171: None | J171: =SUM(H171*I171) -> 0.00 | L171: =SUM(J171*K171) -> 0.00 | M171: 9 | N171: 1.080 | O171: =SUM(M171*N171) -> 9.72
A172: 953.75 | B172: 953 - Virginia-North Carolina Potatoes | G172: None | J172: 0.00 | L172: 0.00 | M172: 0 | N172: 0.000 | O172: 0.00
A173: 955.60 | B173: 955 - Vidalia Onions | G173: None | J173: =SUM(H173*I173) -> 0.00 | L173: =SUM(J173*K173) -> 0.00 | M173: 75 | N173: 0.330 | O173: =SUM(M173*N173) -> 24.75
A174: 956.80 | B174: 956 - Walla Walla Sweet Onions | G174: None | J174: =SUM(H174*I174) -> 0.00 | L174: =SUM(J174*K174) -> 0.00 | M174: 28 | N174: 0.160 | O174: =SUM(M174*N174) -> 4.48
B175: SUBTOTAL | J175: =SUM(J166:J174) -> 0.00 | L175: =SUM(L166:L174) -> 0.00 | M175: =SUM(M166:M174) -> 227.00 | O175: =SUM(O166:O174) -> 216.07
A176: 958.65 | B176: 958 - Idaho/E. Oregon Onions | G176: None | J176: =SUM(H176*I176) -> 0.00 | L176: =SUM(J176*K176) -> 0.00 | M176: 38 | N176: 0.430 | O176: =SUM(M176*N176) -> 16.34
A177: 959.80 | B177: 959 - South Texas Onions | G177: None | J177: 0.00 | L177: 0.00 | M177: 38 | N177: 0.160 | O177: 6.08
A178: 966.80 | B178: 966 - Florida Tomatoes | G178: None | J178: =SUM(H178*I178) -> 0.00 | L178: =SUM(J178*K178) -> 0.00 | M178: 70 | N178: 0.030 | O178: =SUM(M178*N178) -> 2.10
A179: 981.70 | B179: 981 - California Almonds | G179: None | J179: =SUM(H179*I179) -> 0.00 | L179: =SUM(J179*K179) -> 0.00 | M179: 0 | N179: 0.000 | O179: =SUM(M179*N179) -> 0.00
A180: 982.71 | B180: 982 - Hazelnuts | G180: None | J180: 0.00 | L180: 0.00 | M180: 18 | N180: 5.000 | O180: 90.00
A181: 984.80 984.480 | B181: 984 - California Walnuts | G181: None | J181: =SUM(H181*I181) -> 0.00 | L181: =SUM(J181*K181) -> 0.00 | M181: 63 | N181: 1.000 | O181: =SUM(M181*N181) -> 63.00
A182: 985.61 | B182: 985 - Spearmint Oil | G182: None | J182: 0.00 | L182: 0.00 | M182: 10 | N182: 1.500 | O182: 15.00
A183: 987.168 | B183: 987 - California Dates | G183: None | J183: 0.00 | L183: 0.00 | M183: 10 | N183: 0.500 | O183: 5.00
B184: SUBTOTAL | J184: =SUM(J176:J183) -> 0.00 | L184: =SUM(L176:L183) -> 0.00 | M184: =SUM(M176:M183) -> 247.00 | O184: =SUM(O176:O183) -> 197.52
A185: 989.176 | B185: 989 - California Raisins | G185: None | J185: 0.00 | L185: 0.00 | M185: 26 | N185: 16.800 | O185: 436.80
A186: 993.59 993.159 993.173 993.150(c)(1) | B186: 993 - California Dried Prunes (Reporting requirements are currently suspended) | G186: None | J186: =SUM(H186*I186) -> 0.00 | L186: =SUM(J186*K186) -> 0.00 | M186: 0 | O186: =SUM(M186*N186) -> 0.00
A187: 993.162 | B187: 993 - California Dried Prunes (Reporting requirements are currently suspended) | G187: None | J187: =SUM(H187*I187) -> 0.00 | L187: =SUM(J187*K187) -> 0.00 | M187: 0 | O187: =SUM(M187*N187) -> 0.00
A188: 999.1 | B188: 999 - Imported Dates | G188: None | J188: =SUM(H188*I188) -> 0.00 | L188: =SUM(J188*K188) -> 0.00 | M188: 10 | N188: 0.010 | O188: =SUM(M188*N188) -> 0.10
B189: 932 - OLIVES
A190: 932.51(a)(1)(i) 932.151(b) | B190: Weight and Grade Report | G190: COC-3c | H190: 2 | I190: 3000.0000 | J190: =SUM(H190*I190) -> 6,000.00 | K190: 0.2500 | L190: =SUM(J190*K190) -> 1,500.00 | O190: =SUM(M190*N190) -> 0.00
B191: SUBTOTAL | J191: =SUM(J185:J190) -> 6,000.00 | L191: =SUM(L185:L190) -> 1,500.00 | M191: =SUM(M185:M190) -> 36.00 | O191: =SUM(O185:O190) -> 436.90
A192: 932.152(c) | B192: Pack and Certification Report | G192: COC-4 | H192: 2 | I192: 80.0000 | J192: 160.00 | K192: 0.2500 | L192: 40.00 | O192: 0.00
A193: 932.51 932.151(e) | B193: Report of Limited, Undersized, and Cull Olives | G193: COC-5 | H193: 2 | I193: 50.0000 | J193: =SUM(H193*I193) -> 100.00 | K193: 0.2500 | L193: =SUM(J193*K193) -> 25.00 | O193: =SUM(M193*N193) -> 0.00
A194: 932.29 | B194: Statement of Assessable Tonnage | G194: COC-13 | H194: 2 | I194: 1.0000 | J194: 2.00 | K194: 0.2500 | L194: 0.50 | O194: 0.00
A195: 932.139 | B195: Final Assessment Payment | G195: COC-17 | H195: 2 | I195: 1.0000 | J195: 2.00 | K195: 0.2500 | L195: 0.50 | O195: 0.00
A196: 932.61 932.161(a) | B196: Weekly Report of Olives Received | G196: COC-19 | H196: 2 | I196: 9.0000 | J196: 18.00 | K196: 0.2500 | L196: 4.50 | O196: 0.00
A197: 932.61 932.151(f)(3) | B197: Grower Authorization to Combine Lots | G197: COC-23 | H197: 2 | I197: 1.0000 | J197: =SUM(H197*I197) -> 2.00 | K197: 0.1000 | L197: =SUM(J197*K197) -> 0.20 | O197: 0.00
A198: 932.32(c) | B198: Grower Identification Number (GIN) Application NEW | G198: COC-GIN | H198: 900 | I198: 1 | J198: =SUM(H198*I198) -> 900 | K198: 0.33 | L198: =SUM(J198*K198) -> 297 | O198: 0
B199: SUBTOTAL | J199: =SUM(J192:J198) -> 1,184.00 | L199: =SUM(L192:L198) -> 367.70 | M199: =SUM(M192:M197) -> 0.00 | O199: =SUM(O192:O197) -> 0.00
A200: 932.161 932.161(d)(1) | B200: Inventory Holdings of Canned Ripe Olives | G200: COC-27a | H200: 2 | I200: 24.0000 | J200: 48.00 | K200: 0.5000 | L200: 24.00 | O200: 0.00
... 251 more rows
